[Event "Athens of East GM-Open 2019"]
[Site "Madurai"]
[Date "2019.08.14"]
[Round "6.15"]
[White "Jayachandra Srinivas Vellanki"]
[Black "Prasannaa.s"]
[Result "0-1"]
[ECO "A40"]
[WhiteElo "1963"]
[BlackElo "2233"]
[Annotator "ChessBase"]
[PlyCount "126"]
[EventDate "2019.08.11"]
[EventType "swiss"]
[EventCountry "IND"]
[SourceTitle "playchess.com"]
[Source "ChessBase"]
[SourceQuality "1"]
[TimeControl "5400+30"]

1. d4 {[%emt 0:00:00]} a6 {[%emt 0:00:00]} 2. c4 {[%emt 0:00:10]} b5 {[%emt 0:00:00]} 3. b3 {[%emt 0:00:45]} Nf6 {[%emt 0:00:08]} 4. Nf3 {[%emt 0:00:07]} e6 {[%emt 0:00:19]} 5. e3 {[%emt 0:00:58]} bxc4 {[%emt 0:00:59]} 6. bxc4 {[%emt 0:00:06]} Bb7 {[%emt 0:00:04]} 7. Be2 {[%emt 0:01:24]} c5 {[%emt 0:04:26]} 8. O-O {[%emt 0:00:27]} cxd4 {[%emt 0:01:19]} 9. exd4 {[%emt 0:00:06]} d6 {[%emt 0:00:26]} 10. Nc3 {[%emt 0:06:22]} Nbd7 {[%emt 0:00:26]} 11. a4 {[%emt 0:06:23]} Be7 {[%emt 0:00:59]} 12. a5 {[%emt 0:00:25]} O-O {[%emt 0:00:22]} 13. Re1 {[%emt 0:01:45]} Ne4 {[%emt 0:00:54]} 14. Nxe4 {[%emt 0:05:52]} Bxe4 {[%emt 0:00:07]} 15. Bf1 {[%emt 0:01:03]} Bg6 {[%emt 0:00:15]} 16. Ba3 {[%emt 0:04:59]} Qc7 {[%emt 0:03:36]} 17. d5 {[%emt 0:03:04]} Bh5 {[%emt 0:07:32]} 18. dxe6 {[%emt 0:03:55]} fxe6 {[%emt 0:02:07]} 19. Rxe6 {[%emt 0:01:24]} Ne5 {[%emt 0:02:27]} 20. Be2 {[%emt 0:01:09]} Nxf3+ {[%emt 0:00:33]} 21. gxf3 {[%emt 0:00:25]} Rfd8 {[%emt 0:12:55]} 22. Bb2 {[%emt 0:04:05]} Bf7 {[%emt 0:00:49]} 23. Qd4 {[%emt 0:01:06]} Bf8 {[%emt 0:00:04]} 24. Re4 {[%emt 0:06:18]} d5 {[%emt 0:02:57]} 25. Rf4 {[%emt 0:02:50]} dxc4 {[%emt 0:00:43]} 26. Rxf7 {[%emt 0:00:12]} Qxf7 {[%emt 0:00:08]} 27. Bxc4 {[%emt 0:00:04]} Rxd4 {[%emt 0:00:08]} 28. Bxf7+ {[%emt 0:00:03]} Kxf7 {[%emt 0:00:08]} 29. Bxd4 {[%emt 0:00:02]} Rd8 {[%emt 0:01:02]} 30. Bb6 {[%emt 0:00:10]} Rc8 {[%emt 0:00:25]} 31. Kg2 {[%emt 0:00:48]} Ke6 {[%emt 0:00:05]} 32. Rd1 {[%emt 0:00:26]} Bd6 {[%emt 0:00:09]} 33. Bd4 {[%emt 0:01:44]} g6 {[%emt 0:00:28]} 34. Rb1 {[%emt 0:00:14]} Rc4 {[%emt 0:00:35]} 35. Be3 {[%emt 0:00:27]} Rb4 {[%emt 0:06:22]} 36. Rc1 {[%emt 0:03:46]} Kd7 {[%emt 0:00:27]} 37. Rd1 {[%emt 0:00:42]} Kc6 {[%emt 0:00:20]} 38. Rc1+ {[%emt 0:01:21]} Kb5 {[%emt 0:02:03]} 39. Bb6 {[%emt 0:01:33]} Rh4 {[%emt 0:01:06]} 40. h3 {[%emt 0:02:21]} Bb4 {[%emt 0:01:02]} 41. Rb1 {[%emt 0:00:25]} Rh5 {[%emt 0:01:09]} 42. Kg3 {[%emt 0:00:37]} Ka4 {[%emt 0:01:06]} 43. Ra1+ {[%emt 0:00:34]} Kb3 {[%emt 0:00:02]} 44. Rb1+ {[%emt 0:00:11]} Kc3 {[%emt 0:00:18]} 45. Ra1 {[%emt 0:01:06]} Kb2 {[%emt 0:03:08]} 46. Bd4+ {[%emt 0:00:50]} Kb3 {[%emt 0:00:02]} 47. Bb6 {[%emt 0:00:09]} Bc3 {[%emt 0:00:48]} 48. Rb1+ {[%emt 0:01:13]} Kc2 {[%emt 0:00:05]} 49. Rf1 {[%emt 0:01:16]} Bxa5 {[%emt 0:48:57]} 50. Bxa5 {[%emt 0:00:16]} Rxa5 {[%emt 0:00:00]} 51. Re1 {[%emt 0:00:04]} Rh5 {[%emt 0:00:00]} 52. f4 {[%emt 0:00:09]} a5 {[%emt 0:00:00]} 53. Re5 {[%emt 0:00:19]} Rf5 {[%emt 0:00:00]} 54. Re7 {[%emt 0:00:09]} a4 {[%emt 0:00:00]} 55. Ra7 {[%emt 0:00:34]} Kb3 {[%emt 0:00:00]} 56. Rxh7 {[%emt 0:00:27]} a3 {[%emt 0:00:00]} 57. Ra7 {[%emt 0:00:13]} a2 {[%emt 0:00:00]} 58. Kg4 {[%emt 0:01:13]} Rb5 {[%emt 0:00:00]} 59. h4 {[%emt 0:00:26]} Kb2 {[%emt 0:00:00]} 60. f5 {[%emt 0:00:02]} Rxf5 {[%emt 0:00:00]} 61. Rb7+ {[%emt 0:00:33]} Kc3 {[%emt 0:00:00]} 62. Ra7 {[%emt 0:00:29]} Kb3 {[%emt 0:00:00]} 63. Rb7+ {[%emt 0:00:13]} Ka4 {[%emt 0:00:00]} 0-1

[Event "Athens of East GM-Open 2019"]
[Site "Madurai"]
[Date "2019.08.14"]
[Round "6.16"]
[White "Hari Madhavan N B"]
[Black "Manigandan, S S"]
[Result "1/2-1/2"]
[ECO "A11"]
[WhiteElo "2231"]
[BlackElo "2100"]
[Annotator "NA"]
[PlyCount "62"]
[EventDate "2019.08.11"]
[EventType "swiss"]
[EventCountry "IND"]
[SourceTitle "playchess.com"]
[Source "ChessBase"]
[SourceQuality "1"]
[TimeControl "5400+30"]

1. Nf3 {[%emt 0:00:00]} Nf6 {[%emt 0:00:00]} 2. g3 {[%emt 0:00:00]} d5 {[%emt 0:00:05]} 3. d4 {[%emt 0:00:00]} g6 {[%emt 0:00:54]} 4. Bg2 {[%emt 0:00:00]} Bg7 {[%emt 0:00:05]} 5. O-O {[%emt 0:00:05]} O-O {[%emt 0:00:04]} 6. c4 {[%emt 0:00:05]} c6 {[%emt 0:00:03]} 7. b3 {[%emt 0:00:06]} a5 {[%emt 0:00:59]} 8. Nc3 {[%emt 0:00:21]} Ne4 {[%emt 0:05:27]} 9. Bb2 {[%emt 0:00:39]} Na6 {[%emt 0:18:27]} 10. cxd5 {[%emt 0:00:47]} Nxc3 {[%emt 0:01:30]} 11. Bxc3 {[%emt 0:00:12]} cxd5 {[%emt 0:00:07]} 12. Ne5 {[%emt 0:09:03]} b5 {[%emt 0:10:58]} 13. Qd2 {[%emt 0:10:55]} b4 {[%emt 0:01:36]} 14. Bb2 {[%emt 0:00:07]} e6 {[%emt 0:11:40]} 15. a3 {[%emt 0:09:03]} Bd7 {[%emt 0:02:45]} 16. axb4 {[%emt 0:00:54]} Nxb4 {[%emt 0:00:11]} 17. Bc3 {[%emt 0:03:35]} Bb5 {[%emt 0:05:55]} 18. Bf3 {[%emt 0:08:00]} f6 {[%emt 0:06:59]} 19. Bxb4 {[%emt 0:01:36]} axb4 {[%emt 0:00:19]} 20. Nd3 {[%emt 0:00:35]} Bxd3 {[%emt 0:00:54]} 21. Qxd3 {[%emt 0:00:43]} Qb6 {[%emt 0:02:04]} 22. Rxa8 {[%emt 0:00:34]} Rxa8 {[%emt 0:00:09]} 23. Rc1 {[%emt 0:00:03]} Bf8 {[%emt 0:02:06]} 24. e4 {[%emt 0:01:11]} dxe4 {[%emt 0:23:08]} 25. Qxe4 {[%emt 0:00:24]} Rd8 {[%emt 0:00:05]} 26. Rc6 {[%emt 0:03:10]} Qxd4 {[%emt 0:00:07]} 27. Qxe6+ {[%emt 0:00:09]} Kh8 {[%emt 0:00:02]} 28. Rc7 {[%emt 0:07:32]} Bg7 {[%emt 0:01:43]} 29. h4 {[%emt 0:08:00]} f5 {[%emt 0:03:26]} 30. Rc8 {[%emt 0:01:55]} Qf6 {[%emt 0:01:44]} 31. Bd5 {[%emt 0:00:47]} Rxc8 {[%emt 0:00:24]} 1/2-1/2

[Event "Athens of East GM-Open 2019"]
[Site "Madurai"]
[Date "2019.08.14"]
[Round "6.17"]
[White "Samal Ansuman"]
[Black "Lokesh, N.."]
[Result "0-1"]
[ECO "C22"]
[WhiteElo "1975"]
[BlackElo "2202"]
[Annotator "NA"]
[PlyCount "61"]
[EventDate "2019.08.11"]
[EventType "swiss"]
[EventCountry "IND"]
[SourceTitle "playchess.com"]
[Source "ChessBase"]
[SourceQuality "1"]
[TimeControl "5400+30"]

1. e4 {[%emt 0:00:15]} e5 {[%emt 0:00:00]} 2. d4 {[%emt 0:00:12]} exd4 {[%emt 0:00:00]} 3. Qxd4 {[%emt 0:00:05]} Nc6 {[%emt 0:00:00]} 4. Qe3 {[%emt 0:00:04]} g6 {[%emt 0:01:06]} 5. Nc3 {[%emt 0:00:10]} Bg7 {[%emt 0:00:06]} 6. Bd2 {[%emt 0:00:06]} Nf6 {[%emt 0:00:44]} 7. O-O-O {[%emt 0:00:35]} O-O {[%emt 0:00:18]} 8. h4 {[%emt 0:10:21]} Re8 {[%emt 0:05:36]} 9. h5 {[%emt 0:03:41]} d5 {[%emt 0:00:40]} 10. Qg3 {[%emt 0:07:04]} d4 {[%emt 0:21:47]} 11. Bg5 {[%emt 0:07:38]} dxc3 {[%emt 0:00:18]} 12. Rxd8 {[%emt 0:00:41]} cxb2+ {[%emt 0:00:05]} 13. Kb1 {[%emt 0:02:50]} Rxd8 {[%emt 0:00:08]} 14. Bd3 {[%emt 0:21:13]} Nxe4 {[%emt 0:01:58]} 15. Qh4 {[%emt 0:01:15]} Nxg5 {[%emt 0:02:04]} 16. Qxg5 {[%emt 0:12:44]} Be6 {[%emt 0:02:04]} 17. hxg6 {[%emt 0:05:44]} hxg6 {[%emt 0:00:22]} 18. Nf3 {[%emt 0:12:23]} Bxa2+ {[%emt 0:17:40]} 19. Kxa2 {[%emt 0:00:06]} Rd5 {[%emt 0:00:03]} 20. Qh4 {[%emt 0:06:12]} Ra5+ {[%emt 0:01:10]} 21. Kb3 {[%emt 0:00:02]} Rh5 {[%emt 0:00:09]} 22. Qxh5 {[%emt 0:01:10]} gxh5 {[%emt 0:00:08]} 23. c3 {[%emt 0:00:12]} a5 {[%emt 0:06:40]} 24. Kxb2 {[%emt 0:02:44]} a4 {[%emt 0:00:03]} 25. Rxh5 {[%emt 0:03:25]} a3+ {[%emt 0:00:26]} 26. Ka2 {[%emt 0:00:24]} Bxc3 {[%emt 0:00:26]} 27. Rg5+ {[%emt 0:00:03]} Kf8 {[%emt 0:00:19]} 28. Bh7 {[%emt 0:00:23]} Ke7 {[%emt 0:00:12]} 29. Bb1 {[%emt 0:01:39]} Nb4+ {[%emt 0:00:50]} 30. Kb3 {[%emt 0:00:05]} a2 {[%emt 0:00:05]} 31. Ng1 {[%emt 0:02:04]} 0-1

[Event "Athens of East GM-Open 2019"]
[Site "Madurai"]
[Date "2019.08.14"]
[Round "6.18"]
[White "Balkishan, A.."]
[Black "Arnav Maheshwari"]
[Result "1-0"]
[ECO "A47"]
[WhiteElo "2177"]
[BlackElo "1966"]
[Annotator "ChessBase"]
[PlyCount "69"]
[EventDate "2019.08.11"]
[EventType "swiss"]
[EventCountry "IND"]
[SourceTitle "playchess.com"]
[Source "ChessBase"]
[SourceQuality "1"]
[TimeControl "5400+30"]

1. d4 {[%emt 0:02:19]} Nf6 {[%emt 0:00:00]} 2. Nf3 {[%emt 0:00:10]} e6 {[%emt 0:00:00]} 3. Bg5 {[%emt 0:00:51]} b6 {[%emt 0:01:24]} 4. e4 {[%emt 0:00:31]} h6 {[%emt 0:00:07]} 5. Bxf6 {[%emt 0:00:22]} Qxf6 {[%emt 0:00:03]} 6. Bd3 {[%emt 0:01:06]} Bb7 {[%emt 0:01:12]} 7. Nbd2 {[%emt 0:00:52]} c5 {[%emt 0:01:30]} 8. c3 {[%emt 0:00:22]} Nc6 {[%emt 0:01:11]} 9. e5 {[%emt 0:07:24]} Qd8 {[%emt 0:00:46]} 10. O-O {[%emt 0:02:08]} cxd4 {[%emt 0:05:33]} 11. cxd4 {[%emt 0:00:28]} d6 {[%emt 0:03:44]} 12. Qa4 {[%emt 0:06:02]} a6 {[%emt 0:02:44]} 13. d5 {[%emt 0:12:29]} exd5 {[%emt 0:12:38]} 14. Rfe1 {[%emt 0:02:31]} Be7 {[%emt 0:04:50]} 15. e6 {[%emt 0:04:24]} O-O {[%emt 0:01:45]} 16. Qg4 {[%emt 0:00:18]} Bc8 {[%emt 0:19:31]} 17. Qf5 {[%emt 0:02:15]} g6 {[%emt 0:04:25]} 18. exf7+ {[%emt 0:02:09]} Rxf7 {[%emt 0:00:16]} 19. Qxd5 {[%emt 0:03:09]} Nb4 {[%emt 0:02:42]} 20. Qxa8 {[%emt 0:00:18]} Nxd3 {[%emt 0:00:03]} 21. Rxe7 {[%emt 0:00:14]} Qxe7 {[%emt 0:00:44]} 22. Qxc8+ {[%emt 0:00:08]} Kh7 {[%emt 0:00:02]} 23. Qc4 {[%emt 0:01:13]} Nf4 {[%emt 0:00:32]} 24. Re1 {[%emt 0:00:24]} Qd7 {[%emt 0:00:31]} 25. h3 {[%emt 0:02:26]} d5 {[%emt 0:01:28]} 26. Qxa6 {[%emt 0:01:28]} Qf5 {[%emt 0:01:36]} 27. Qxb6 {[%emt 0:01:59]} g5 {[%emt 0:00:28]} 28. Re5 {[%emt 0:03:27]} Qd7 {[%emt 0:00:28]} 29. Nf1 {[%emt 0:04:07]} g4 {[%emt 0:01:55]} 30. hxg4 {[%emt 0:01:01]} Qxg4 {[%emt 0:00:04]} 31. Ng3 {[%emt 0:02:27]} Nxg2 {[%emt 0:00:37]} 32. Kxg2 {[%emt 0:00:56]} Qxf3+ {[%emt 0:00:02]} 33. Kh3 {[%emt 0:01:39]} Qf4 {[%emt 0:00:13]} 34. Qe6 {[%emt 0:01:10]} Qxf2 {[%emt 0:00:27]} 35. Rf5 {[%emt 0:00:12]} 1-0

[Event "Athens of East GM-Open 2019"]
[Site "Madurai"]
[Date "2019.08.14"]
[Round "6.19"]
[White "Ananthapadmanabh D V"]
[Black "Tiwari, Arjun"]
[Result "1-0"]
[ECO "B20"]
[WhiteElo "1755"]
[BlackElo "2171"]
[Annotator "NA"]
[PlyCount "63"]
[EventDate "2019.08.11"]
[EventType "swiss"]
[EventCountry "IND"]
[SourceTitle "playchess.com"]
[Source "ChessBase"]
[SourceQuality "1"]
[TimeControl "5400+30"]

1. e4 {[%emt 0:00:00]} c5 {[%emt 0:00:00]} 2. d3 {[%emt 0:00:26]} Nc6 {[%emt 0:00:00]} 3. g3 {[%emt 0:00:08]} g6 {[%emt 0:00:06]} 4. Bg2 {[%emt 0:00:25]} Bg7 {[%emt 0:00:05]} 5. Nh3 {[%emt 0:01:11]} e5 {[%emt 0:00:55]} 6. O-O {[%emt 0:02:00]} Nge7 {[%emt 0:00:09]} 7. Nd2 {[%emt 0:01:17]} O-O {[%emt 0:02:30]} 8. f4 {[%emt 0:02:23]} d5 {[%emt 0:00:27]} 9. Nf2 {[%emt 0:00:06]} f5 {[%emt 0:01:09]} 10. fxe5 {[%emt 0:08:15]} fxe4 {[%emt 0:06:32]} 11. dxe4 {[%emt 0:00:21]} d4 {[%emt 0:01:04]} 12. Nf3 {[%emt 0:06:27]} Qb6 {[%emt 0:05:28]} 13. Qe2 {[%emt 0:04:58]} Kh8 {[%emt 0:01:58]} 14. Kh1 {[%emt 0:04:45]} Be6 {[%emt 0:01:13]} 15. Nd3 {[%emt 0:11:38]} Bg8 {[%emt 0:10:10]} 16. b3 {[%emt 0:04:46]} c4 {[%emt 0:09:29]} 17. bxc4 {[%emt 0:03:20]} Bxc4 {[%emt 0:00:20]} 18. Ba3 {[%emt 0:04:29]} Qa5 {[%emt 0:11:05]} 19. Bd6 {[%emt 0:01:37]} Bh6 {[%emt 0:01:47]} 20. h4 {[%emt 0:11:13]} Rad8 {[%emt 0:07:43]} 21. Bh3 {[%emt 0:01:19]} Rfe8 {[%emt 0:17:10]} 22. Rab1 {[%emt 0:05:12]} b5 {[%emt 0:03:38]} 23. h5 {[%emt 0:06:38]} g5 {[%emt 0:08:27]} 24. Nh2 {[%emt 0:00:53]} Nc8 {[%emt 0:04:15]} 25. Ng4 {[%emt 0:06:23]} Nxd6 {[%emt 0:00:19]} 26. exd6 {[%emt 0:00:36]} Rxd6 {[%emt 0:01:12]} 27. e5 {[%emt 0:02:47]} Bg7 {[%emt 0:02:02]} 28. h6 {[%emt 0:01:14]} Bxe5 {[%emt 0:00:59]} 29. Ngxe5 {[%emt 0:00:34]} Rxh6 {[%emt 0:01:38]} 30. Ng6+ {[%emt 0:03:08]} Rxg6 {[%emt 0:01:40]} 31. Qxe8+ {[%emt 0:00:05]} Bg8 {[%emt 0:00:14]} 32. Ne5 {[%emt 0:01:16]} 1-0

[Event "Athens of East GM-Open 2019"]
[Site "Madurai"]
[Date "2019.08.15"]
[Round "7.16"]
[White "Surendran N"]
[Black "Saravana, Krishnan P."]
[Result "0-1"]
[ECO "A28"]
[WhiteElo "2152"]
[BlackElo "2277"]
[Annotator "ChessBase"]
[PlyCount "54"]
[EventDate "2019.08.11"]
[EventType "swiss"]
[EventCountry "IND"]
[SourceTitle "playchess.com"]
[Source "ChessBase"]
[SourceQuality "1"]
[TimeControl "5400+30"]

1. c4 {[%emt 0:00:00]} e5 {[%emt 0:01:45]} 2. Nc3 {[%emt 0:00:01]} Nf6 {[%emt 0:05:56]} 3. Nf3 {[%emt 0:00:06]} Nc6 {[%emt 0:02:33]} 4. e3 {[%emt 0:00:07]} Bb4 {[%emt 0:10:25]} 5. Qc2 {[%emt 0:00:08]} d6 {[%emt 0:02:08]} 6. a3 {[%emt 0:00:51]} Bxc3 {[%emt 0:00:16]} 7. Qxc3 {[%emt 0:00:02]} Bg4 {[%emt 0:01:51]} 8. b3 {[%emt 0:01:09]} Qe7 {[%emt 0:00:30]} 9. Bb2 {[%emt 0:00:17]} a5 {[%emt 0:09:46]} 10. d3 {[%emt 0:01:18]} Bxf3 {[%emt 0:06:01]} 11. gxf3 {[%emt 0:03:27]} d5 {[%emt 0:00:57]} 12. cxd5 {[%emt 0:02:09]} Nxd5 {[%emt 0:03:37]} 13. Qc4 {[%emt 0:00:47]} Nb6 {[%emt 0:03:34]} 14. Qg4 {[%emt 0:16:56]} g6 {[%emt 0:01:11]} 15. f4 {[%emt 0:03:34]} f5 {[%emt 0:07:26]} 16. Qd1 {[%emt 0:01:36]} Rf8 {[%emt 0:00:29]} 17. fxe5 {[%emt 0:04:19]} f4 {[%emt 0:02:15]} 18. e4 {[%emt 0:19:55]} Nxe5 {[%emt 0:04:26]} 19. Qc2 {[%emt 0:00:45]} O-O-O {[%emt 0:10:50]} 20. O-O-O {[%emt 0:04:15]} Rf6 {[%emt 0:01:49]} 21. Kb1 {[%emt 0:00:14]} Rc6 {[%emt 0:04:32]} 22. Qe2 {[%emt 0:05:10]} Qe6 {[%emt 0:03:00]} 23. Bh3 {[%emt 0:06:23]} Qxh3 {[%emt 0:00:09]} 24. Bxe5 {[%emt 0:00:02]} Qe6 {[%emt 0:00:39]} 25. Qb2 {[%emt 0:00:19]} Na4 {[%emt 0:01:04]} 26. bxa4 {[%emt 0:04:44]} Rb6 {[%emt 0:00:05]} 27. Qxb6 {[%emt 0:01:26]} Qxb6+ {[%emt 0:00:13]} 0-1

[Event "Athens of East GM-Open 2019"]
[Site "Madurai"]
[Date "2019.08.15"]
[Round "7.17"]
[White "Manigandan, S S"]
[Black "Sahoo, Utkal Ranjan"]
[Result "0-1"]
[ECO "D61"]
[WhiteElo "2100"]
[BlackElo "2278"]
[Annotator "ChessBase"]
[PlyCount "114"]
[EventDate "2019.08.11"]
[EventType "swiss"]
[EventCountry "IND"]
[SourceTitle "playchess.com"]
[Source "ChessBase"]
[SourceQuality "1"]
[TimeControl "5400+30"]

1. d4 {[%emt 0:00:00]} Nf6 {[%emt 0:00:00]} 2. c4 {[%emt 0:00:00]} e6 {[%emt 0:00:00]} 3. Nc3 {[%emt 0:00:00]} d5 {[%emt 0:00:04]} 4. Nf3 {[%emt 0:00:00]} Be7 {[%emt 0:00:08]} 5. Bg5 {[%emt 0:00:21]} Nbd7 {[%emt 0:00:34]} 6. e3 {[%emt 0:00:24]} h6 {[%emt 0:00:08]} 7. Bh4 {[%emt 0:00:12]} O-O {[%emt 0:00:09]} 8. Qc2 {[%emt 0:00:29]} c6 {[%emt 0:00:08]} 9. Rd1 {[%emt 0:00:07]} a6 {[%emt 0:00:51]} 10. a3 {[%emt 0:06:17]} Re8 {[%emt 0:09:25]} 11. h3 {[%emt 0:04:39]} b6 {[%emt 0:11:18]} 12. Bd3 {[%emt 0:02:48]} Bb7 {[%emt 0:01:26]} 13. O-O {[%emt 0:01:10]} Rc8 {[%emt 0:00:51]} 14. e4 {[%emt 0:26:46]} dxe4 {[%emt 0:09:20]} 15. Nxe4 {[%emt 0:10:47]} Nxe4 {[%emt 0:08:21]} 16. Bxe7 {[%emt 0:00:07]} Qxe7 {[%emt 0:00:13]} 17. Bxe4 {[%emt 0:00:05]} Red8 {[%emt 0:06:43]} 18. Rfe1 {[%emt 0:02:39]} Nf6 {[%emt 0:01:36]} 19. c5 {[%emt 0:09:41]} bxc5 {[%emt 0:00:53]} 20. dxc5 {[%emt 0:00:10]} Rxd1 {[%emt 0:02:59]} 21. Rxd1 {[%emt 0:00:27]} Nxe4 {[%emt 0:01:36]} 22. Qxe4 {[%emt 0:00:05]} Qxc5 {[%emt 0:00:20]} 23. Rd7 {[%emt 0:05:22]} Ba8 {[%emt 0:01:21]} 24. Ne5 {[%emt 0:09:55]} Qc1+ {[%emt 0:01:28]} 25. Kh2 {[%emt 0:00:05]} c5 {[%emt 0:00:25]} 26. Qg4 {[%emt 0:00:35]} Qxb2 {[%emt 0:01:47]} 27. Nxf7 {[%emt 0:00:55]} Qf6 {[%emt 0:01:10]} 28. Nd6 {[%emt 0:17:04]} Rf8 {[%emt 0:01:08]} 29. f3 {[%emt 0:02:47]} Bd5 {[%emt 0:04:55]} 30. Rc7 {[%emt 0:00:27]} h5 {[%emt 0:16:43]} 31. Qg3 {[%emt 0:00:03]} h4 {[%emt 0:00:13]} 32. Qg4 {[%emt 0:00:01]} Qe5+ {[%emt 0:00:08]} 33. Kh1 {[%emt 0:00:05]} c4 {[%emt 0:00:34]} 34. Qg6 {[%emt 0:01:03]} c3 {[%emt 0:01:52]} 35. f4 {[%emt 0:00:26]} Qf6 {[%emt 0:02:00]} 36. Qxf6 {[%emt 0:01:24]} Rxf6 {[%emt 0:00:21]} 37. Nc8 {[%emt 0:00:10]} Kh7 {[%emt 0:06:25]} 38. Nb6 {[%emt 0:00:44]} Rxf4 {[%emt 0:00:50]} 39. Nxd5 {[%emt 0:00:32]} exd5 {[%emt 0:00:21]} 40. Rxc3 {[%emt 0:00:02]} Kg6 {[%emt 0:05:26]} 41. Rc5 {[%emt 0:00:45]} d4 {[%emt 0:00:23]} 42. Rd5 {[%emt 0:00:49]} Kf6 {[%emt 0:01:18]} 43. g3 {[%emt 0:00:27]} hxg3 {[%emt 0:00:33]} 44. Kg2 {[%emt 0:00:01]} Ke6 {[%emt 0:00:19]} 45. Rd8 {[%emt 0:00:12]} Ke5 {[%emt 0:00:17]} 46. Rd7 {[%emt 0:01:20]} g6 {[%emt 0:00:24]} 47. Re7+ {[%emt 0:00:23]} Kd5 {[%emt 0:01:11]} 48. Rd7+ {[%emt 0:00:02]} Kc4 {[%emt 0:00:16]} 49. Rc7+ {[%emt 0:00:22]} Kd5 {[%emt 0:02:08]} 50. Rd7+ {[%emt 0:00:10]} Kc5 {[%emt 0:00:40]} 51. Rc7+ {[%emt 0:00:22]} Kd6 {[%emt 0:00:38]} 52. Ra7 {[%emt 0:01:25]} d3 {[%emt 0:00:21]} 53. Rxa6+ {[%emt 0:00:24]} Ke5 {[%emt 0:00:25]} 54. Ra5+ {[%emt 0:00:18]} Ke4 {[%emt 0:00:41]} 55. Kxg3 {[%emt 0:01:03]} Rf5 {[%emt 0:00:48]} 56. Ra8 {[%emt 0:00:29]} d2 {[%emt 0:00:19]} 57. Re8+ {[%emt 0:00:22]} Kd4 {[%emt 0:00:17]} 0-1

[Event "Athens of East GM-Open 2019"]
[Site "Madurai"]
[Date "2019.08.15"]
[Round "7.18"]
[White "Aaryan Varshney"]
[Black "Priyanka, Kumari"]
[Result "1-0"]
[ECO "E99"]
[WhiteElo "2272"]
[BlackElo "1991"]
[Annotator "ChessBase"]
[PlyCount "89"]
[EventDate "2019.08.11"]
[EventType "swiss"]
[EventCountry "IND"]
[SourceTitle "playchess.com"]
[Source "ChessBase"]
[SourceQuality "1"]
[TimeControl "5400+30"]

1. d4 {[%emt 0:00:00]} Nf6 {[%emt 0:00:11]} 2. c4 {[%emt 0:00:00]} g6 {[%emt 0:00:07]} 3. Nc3 {[%emt 0:00:00]} Bg7 {[%emt 0:00:04]} 4. e4 {[%emt 0:00:00]} d6 {[%emt 0:00:06]} 5. Nf3 {[%emt 0:00:00]} O-O {[%emt 0:00:56]} 6. Be2 {[%emt 0:00:03]} e5 {[%emt 0:01:00]} 7. O-O {[%emt 0:00:09]} Nc6 {[%emt 0:00:06]} 8. d5 {[%emt 0:00:04]} Ne7 {[%emt 0:00:05]} 9. Ne1 {[%emt 0:00:05]} Nd7 {[%emt 0:00:21]} 10. Be3 {[%emt 0:00:09]} f5 {[%emt 0:00:12]} 11. f3 {[%emt 0:00:11]} f4 {[%emt 0:02:43]} 12. Bf2 {[%emt 0:00:01]} g5 {[%emt 0:00:15]} 13. Nd3 {[%emt 0:00:07]} Rf6 {[%emt 0:01:48]} 14. c5 {[%emt 0:00:40]} Rh6 {[%emt 0:04:51]} 15. Rc1 {[%emt 0:03:50]} Qe8 {[%emt 0:05:40]} 16. Kh1 {[%emt 0:05:37]} Nf6 {[%emt 0:05:04]} 17. cxd6 {[%emt 0:09:06]} cxd6 {[%emt 0:00:54]} 18. a4 {[%emt 0:13:00]} Qg6 {[%emt 0:12:53]} 19. Ne1 {[%emt 0:12:54]} Qh5 {[%emt 0:14:23]} 20. Bg1 {[%emt 0:00:38]} Qh4 {[%emt 0:01:08]} 21. Bd3 {[%emt 0:05:51]} Nh5 {[%emt 0:07:58]} 22. Ne2 {[%emt 0:00:41]} Ng3+ {[%emt 0:01:26]} 23. Nxg3 {[%emt 0:00:51]} fxg3 {[%emt 0:00:50]} 24. Qd2 {[%emt 0:10:51]} Qh5 {[%emt 0:16:24]} 25. Rc7 {[%emt 0:10:05]} Bf6 {[%emt 0:06:42]} 26. Nc2 {[%emt 0:03:49]} Qe8 {[%emt 0:06:33]} 27. Ne3 {[%emt 0:01:46]} Rxh2+ {[%emt 0:07:41]} 28. Bxh2 {[%emt 0:00:24]} Qh5 {[%emt 0:00:12]} 29. Rxc8+ {[%emt 0:00:26]} Rxc8 {[%emt 0:02:04]} 30. Ng4 {[%emt 0:00:02]} Kg7 {[%emt 0:00:14]} 31. Qe1 {[%emt 0:05:22]} gxh2 {[%emt 0:00:11]} 32. Qb4 {[%emt 0:00:11]} Rc5 {[%emt 0:02:23]} 33. Qxb7 {[%emt 0:00:22]} Qe8 {[%emt 0:00:30]} 34. Qxa7 {[%emt 0:02:31]} Qc8 {[%emt 0:00:15]} 35. Qb6 {[%emt 0:00:41]} Qd7 {[%emt 0:00:46]} 36. Bb5 {[%emt 0:02:24]} Qc7 {[%emt 0:00:13]} 37. Qxc7 {[%emt 0:00:13]} Rxc7 {[%emt 0:00:01]} 38. Ne3 {[%emt 0:01:23]} Kf8 {[%emt 0:00:32]} 39. Nc4 {[%emt 0:01:19]} Nc8 {[%emt 0:00:08]} 40. Bc6 {[%emt 0:00:29]} Na7 {[%emt 0:00:37]} 41. Nxd6 {[%emt 0:00:47]} Nxc6 {[%emt 0:00:07]} 42. Rc1 {[%emt 0:00:43]} Be7 {[%emt 0:00:17]} 43. Nb5 {[%emt 0:01:05]} Rc8 {[%emt 0:00:16]} 44. dxc6 {[%emt 0:00:35]} Ke8 {[%emt 0:00:16]} 45. a5 {[%emt 0:00:29]} 1-0

[Event "Athens of East GM-Open 2019"]
[Site "Madurai"]
[Date "2019.08.15"]
[Round "7.19"]
[White "Nayak Rajesh"]
[Black "Rao, Siddarth Satya"]
[Result "1/2-1/2"]
[ECO "A14"]
[WhiteElo "2250"]
[BlackElo "2230"]
[Annotator "ChessBase"]
[PlyCount "48"]
[EventDate "2019.08.11"]
[EventType "swiss"]
[EventCountry "IND"]
[SourceTitle "playchess.com"]
[Source "ChessBase"]
[SourceQuality "1"]
[TimeControl "5400+30"]

1. Nf3 {[%emt 0:00:39]} Nf6 {[%emt 0:00:00]} 2. g3 {[%emt 0:00:23]} e6 {[%emt 0:00:14]} 3. Bg2 {[%emt 0:01:00]} Be7 {[%emt 0:00:13]} 4. O-O {[%emt 0:00:29]} O-O {[%emt 0:00:06]} 5. b3 {[%emt 0:07:26]} d5 {[%emt 0:00:18]} 6. Bb2 {[%emt 0:00:07]} c5 {[%emt 0:00:17]} 7. c4 {[%emt 0:01:51]} Nc6 {[%emt 0:01:35]} 8. d3 {[%emt 0:00:54]} Re8 {[%emt 0:02:02]} 9. Nbd2 {[%emt 0:00:49]} Bf8 {[%emt 0:01:03]} 10. a3 {[%emt 0:06:54]} d4 {[%emt 0:03:36]} 11. Ne1 {[%emt 0:09:01]} e5 {[%emt 0:00:54]} 12. e4 {[%emt 0:00:39]} g6 {[%emt 0:04:12]} 13. h3 {[%emt 0:00:45]} a5 {[%emt 0:02:04]} 14. Ndf3 {[%emt 0:02:06]} Bd7 {[%emt 0:02:53]} 15. a4 {[%emt 0:02:08]} Nh5 {[%emt 0:01:36]} 16. Bc1 {[%emt 0:02:03]} Ra6 {[%emt 0:06:04]} 17. Rb1 {[%emt 0:11:01]} Ra7 {[%emt 0:06:32]} 18. Rb2 {[%emt 0:00:31]} Bc8 {[%emt 0:01:01]} 19. Kh2 {[%emt 0:07:50]} h6 {[%emt 0:10:03]} 20. Ng1 {[%emt 0:02:41]} Bg7 {[%emt 0:03:15]} 21. Bf3 {[%emt 0:03:55]} Nf6 {[%emt 0:00:08]} 22. Bg2 {[%emt 0:00:45]} Nh5 {[%emt 0:00:09]} 23. Ne2 {[%emt 0:08:33]} Qd6 {[%emt 0:06:18]} 24. Ng1 {[%emt 0:03:51]} Qd8 {[%emt 0:01:54]} 1/2-1/2